{"text_format":"1","workbook":"xlsx","n_sheets":15,"sheets":["General","Financials & Capital","PI Coverage","F&P","Meetings & Record Keeping","Employees","Outsourcing","Inv. Report","Funds & Pensions","Credit Risk Exposure","Client Base (Geo)","Business Continuity, etc.","Other Activities & Issues","Declaration","Answer Key"],"not_rendered":{"charts":0,"images":1,"macros":0,"external_links":2,"defined_names":2,"comments":0,"pivot_tables":0},"unopened":[],"bounds":{"document_bytes":16777216,"sheet_cells":100000,"rows_first":2000,"rows_last":500,"rows_between":2000,"halvings":0,"cell_chars":16384,"cell_head_chars":4096},"cells_cut":0,"cells_raw":0,"read":"whole","date_system":"1900"}

{"sheet":"General","index":0,"n_rows":54,"n_cols":11,"rows_kept":54,"cut":false,"hidden":false,"merged":[[1,0,1,14],[11,0,11,14],[12,0,12,14],[13,0,13,14],[14,1,14,14],[10,0,10,14],[16,4,16,13],[20,4,20,8],[18,4,18,13],[25,10,26,13],[27,10,28,13],[42,2,42,7],[51,4,51,13],[32,2,33,5],[49,4,49,13],[45,4,45,8],[33,10,34,13],[31,10,32,13],[53,9,53,13],[55,9,55,13],[57,9,57,13],[59,9,59,13],[47,4,47,13],[58,9,58,13],[56,9,56,13],[54,9,54,13]]}
[]
["BRITISH VIRGIN ISLANDS FINANCIAL SERVICES COMMISSION"]
[]
[]
[]
[]
[]
[]
[]
[]
["INVESTMENT BUSINESS ANNUAL RETURN"]
["Securities and Investment Business Act, 2010"]
["Financial Services (Prudential and Statistical Returns) Order, 2009"]
[]
[]
[]
[null,"Licensee Name:"]
[]
[null,"Licensee's dba Name:"]
[]
[null,"Licence Number:"]
[]
[null,"Licence Type (Tick as applicable): "]
[]
[null,"Category 1: Dealing in Investments",null,null,null,null,null,null,null,"Category 5: Custody of Investments "]
[null,null,"Subcategory A: Dealing as Agent",null,null,null,null,null,null,null,"Subcategory A: Custody of Investments (Excluding Mutual Funds)"]
[null,null,"Subcategory B: Dealing as Principal"]
[null,null,null,null,null,null,null,null,null,null,"Subcategory A: Custody of Investments (Mutual Funds)"]
[null,"Category 2 "]
[null,null,"Arranging Deals in Investments"]
[null,null,null,null,null,null,null,null,null,"Category 6: Administration of Investments"]
[null,"Category 3:Managing Investments",null,null,null,null,null,null,null,null,"Subcategory A: Administration of Investments (Excluding Mutual Funds)"]
[null,null,"Subcategory A: Segregated Portfolios (Excluding Mutual Funds)"]
[null,null,null,null,null,null,null,null,null,null,"Subcategory B: Administration of Investments                       (Mutual Funds)"]
[null,null,"Subcategory B: Mutual Funds"]
[null,null,"Subcategory C: Pension Schemes"]
[null,null,"Subcategory D: Insurance Products",null,null,null,null,null,null,"Category 7"]
[null,null,"Subcategory E: Other Types of Investments",null,null,null,null,null,null,null,"Operating an Investment Exchange"]
[]
[null,"Category 4: Investment Advice"]
[null,null,"Subcategory A: Investment Advice (Excluding Mutual Funds)"]
[null,null,"Subcategory B: Investment Advice (Mutual Funds)"]
[]
[]
[]
[null,"Reporting Period: "]
[]
[null,"Registered Agent:"]
[]
[null,"Registered Office Address:"]
[]
[null,"Authorised Representative:"]
[]
[null,"Jurisdictions in which the licensee's operations are primarily based:"]

{"sheet":"Financials & Capital","index":1,"n_rows":50,"n_cols":9,"rows_kept":50,"cut":false,"hidden":false,"merged":[[52,3,52,8],[47,5,47,8],[49,5,50,8],[30,1,31,1],[43,5,44,8],[1,2,1,3],[29,3,30,7],[29,2,30,2],[41,5,41,6],[32,3,37,8]]}
[]
[null,"1.","FINANCIAL INFORMATION"]
[]
[null,null,"Summary of Balance sheet information: Report in US Dollars ONLY"]
[null,null,"Current Assets",null,null,null,"Current Liabilities "]
[null,null,1.1000000000000001,"Cash and cash equivalents",0,null,1.1499999999999999,"Amounts due to related parties",0]
[null,null,1.2,"Funds held for clients",0,null,1.1599999999999999,"Funds due to clients",0]
[null,null,1.3,"Accounts receivable - clients",0,null,1.17,"Trade and other payables",0]
[null,null,1.4,"Amounts due from related parties",0,null,1.18,"Deferred Income",0]
[null,null,1.5,"Short Term Investments",0,null,1.19,"Other Current Liabilities",0]
[null,null,1.6,"Trade and other receivables",0,null,1.2,"Total Current Liabilites",{"$f":"SUM(I6:I10)","v":0}]
[null,null,1.7,"Other Current Assets",0]
[null,null,1.8,"Total Current Assets",{"$f":"SUM(E6:E12)","v":0},null,"Non-Current Liabilities"]
[null,null,null,null,null,null,1.21,"Amounts due to related parties",0]
[null,null,null,null,null,null,1.22,"Deferred Income",0]
[null,null,"Non-Current Assets",null,null,null,1.23,"Other Non-Current Liabilities",0]
[null,null,1.9,"Fixed Assets",0,null,1.24,"Total Non-Current Liabilities",{"$f":"SUM(I14:I16)","v":0}]
[null,null,1.1000000000000001,"Amounts due from related parties",0]
[null,null,1.1100000000000001,"Long Term Investments",0,null,1.25,"Total Liabiltities ",{"$f":"I11+I17","v":0}]
[null,null,1.1200000000000001,"Other Non-Current Assets",0]
[null,null,1.1299999999999999,"Total Non-Current Assets",{"$f":"SUM(E17:E20)","v":0},null," Shareholders' Equity"]
[null,null,null,null,null,null,1.26,"Share Capital",0]
[null,null,1.1399999999999999,"Total Assets",{"$f":"E13+E21","v":0},null,1.27,"Retained Earnings",0]
[null,null,null,null,null,null,1.28,"Other Reserves",0]
[]
[null,null,null,null,null,null,"1.29 Total Liabilities & Shareholders' equity",null,{"$f":"I19+SUM(I22:I24)","v":0}]
[]
[]
[null,null,"Contingent Liabilities",null,null,null,null,null,"Select (Yes or No)"]
[null,null,1.3,"Are there any Contingent Liabilities (e.g. pending litigation) which were not reported in the licensee's last audited financial statements or otherwise reported to the Commission?"]
[]
[null,null,1.31,"If yes, please provide details below:"]
[]
[]
[]
[]
[]
[]
[]
[]
[null,"2. ","CAPITAL"]
[null,null,"2.1","Total number of shares issued:"]
[]
[null,null,"2.2","Form(s) in which Share Capital is contributed:"]
[]
[]
[null,null,"2.3","Institution where Share Capital is being held:"]
[null,null,null,null,"Name:"]
[]
[null,null,null,null,"Address:"]

{"sheet":"PI Coverage","index":2,"n_rows":45,"n_cols":10,"rows_kept":45,"cut":false,"hidden":false,"merged":[[9,3,9,8],[37,3,37,8],[39,3,39,8],[44,3,44,8],[32,3,33,8],[11,4,11,9],[19,4,20,9],[22,4,23,9],[29,4,30,9],[13,4,13,9],[40,6,40,7],[42,6,42,7]]}
[]
[null,"3.","PROFESSIONAL INDEMNITY INSURANCE"]
[null,null,null,null,null,null,"Select (Yes or No)"]
[null,null,3.1,"Does the licensee maintain professional indemnity insurance?"]
[]
[null,null,3.2,"If the response to 3.1 is yes, complete items 3.2.1 to 3.2.6 below:"]
[null,null,null,null,null,null,null,null,null,"Select (Yes or No)"]
[null,null,"3.2.1","Has the licensee's professional indemnity insurance coverage changed from the previous reporting period?"]
[]
[null,null,"3.2.2","Provide details the licensee's professional indemnity insurance (PII) coverage during the reporting period below:"]
[]
[null,null,null,"Name of Insurer"]
[]
[null,null,null,"Jurisdiction of Insurer"]
[]
[null,null,null,"Level of cover (USD)",0]
[]
[null,null,null,"Level of excess Payable",0]
[]
[null,null,null,"Territorial limits"]
[]
[]
[null,null,null,"Details of any exclusions"]
[]
[]
[null,null,null,"Policy Effective Date"]
[]
[null,null,null,"Policy Expiration Date"]
[]
[null,null,null,"Details of any reinstatement "]
[]
[]
[null,null,"3.2.3","Has the PII coverage been reassessed to ensure that its is appropriate taking into account the nature, size, complexity, structure and diversity of the licensee's business, during the reporting period.",null,null,null,null,null,"Select (Yes or No)"]
[]
[]
[null,null,null,"Policy Last Assessment Date"]
[]
[null,null,"3.2.4","Number of notifications made by the licensee to the insurer relating to potential claims during the reporting period:"]
[]
[null,null,"3.2.5","Detals of claims paid to the licensee by the licensee's insurer for the reporting period:"]
[null,null,null,null,null,"No. of Claims:"]
[]
[null,null,null,null,null,"Total Value of Claims:"]
[null,null,null,null,null,null,null,null,null,"Select (Yes or No)"]
[null,null,"3.2.6","Has the licensee's PII coverage lapsed at any times during the reporting period?"]

{"sheet":"F&P","index":3,"n_rows":32,"n_cols":8,"rows_kept":32,"cut":false,"hidden":false,"merged":[[2,2,3,2],[2,3,3,6],[5,2,6,2],[5,3,6,6],[8,2,9,2],[8,3,9,6],[11,2,12,2],[11,3,12,6],[14,2,15,2],[14,3,15,6],[17,2,18,2],[17,3,18,6],[32,3,52,7],[20,2,21,2],[20,3,21,6],[23,2,25,2],[23,3,25,6],[27,2,29,2],[27,3,29,6]]}
[]
[null,"4.","FITNESS AND PROPRIETY"]
[null,null,4.0999999999999996,"Was the licensee or any of its general partners, directors, senior officers, shareholders, controllers or ultimate beneficial owners convicted of any criminal offence by a court of Law during the reporting period?",null,null,null,"Select (Yes or No)"]
[]
[]
[null,null,4.2,"Was the licensee or any of its general partners, directors, senior officers, shareholders, controllers or ultimate beneficial owners the subject of a criminal investigation or extradition request during the reporting period? "]
[]
[]
[null,null,4.3,"Was the licensee or any of its general partners, directors, senior officers, shareholders or ultimate beneficial owners censured or disciplined by any professional body to which they belong or belonged during the reporting period?"]
[]
[]
[null,null,4.4000000000000004,"Were any of the licensee's general partners, directors, senior officers, shareholders, controllers or ultimate beneficial owners dismissed from office or employment or refused entry to any profession or occupation, during the reporting period? "]
[]
[]
[null,null,4.5,"Did the licensee or any of its general partners, directors, senior officers, shareholders, controllers or ultimate beneficial owners file for bankruptcy or were adjudicated bankrupt by any court, during the reporting period?"]
[]
[]
[null,null,4.5999999999999996,"Did the licensee or any of its general partners, directors, senior officers, shareholders or ultimate beneficial owners fail to satisfy any debt due and payable as a judgement-debtor under any court order, during the reporting period?"]
[]
[]
[null,null,4.7,"Was the licensee or any of its general partners, directors, senior officers, shareholders, controllers or ultimate beneficial owners found liable in a civil suit which elicited dishonest or unlawful conduct, during the reporting period?"]
[]
[]
[null,null,4.8,"Was the licensee or any of its general partners, directors, officers, shareholders, controllers or beneifical owners, in connection with the formation, control or management of any corporate, partnership or unincorporated institution, adjudged by a court in any jurisdiction civilly liable for any fraud, malfeasance or other misconduct towards such a body or company, or towards any members thereof, during the reporting period?"]
[]
[]
[]
[null,null,4.9000000000000004,"Has any body corporate, partnership or unincorporated institution with which the licensee was associated as general partner, director, shareholder or controller, anywhere, been compulsorily wound up or made any compromise or arrangement with its creditors where they did not receive or have not yet received a full settlement of their claims, during the reporting period?"]
[]
[]
[]
[null,null,4.0999999999999996,"If the licensee has responded yes to any of the questions above, please provide full details including dates below: "]

{"sheet":"Meetings & Record Keeping","index":4,"n_rows":26,"n_cols":4,"rows_kept":26,"cut":false,"hidden":false,"merged":[[26,3,29,9],[22,3,23,9],[14,3,15,9],[7,8,7,10],[9,8,9,10],[11,8,11,10],[6,8,6,10],[8,8,8,10],[10,8,10,10],[12,8,12,10],[19,3,20,9]]}
[]
[null,"5.","BOARD MEETINGS"]
[null,null,"(Insert responses or select applicable responses from the drop boxes as required)"]
[]
[null,null,"5.1","No. of Board meetings held during the reporting period:"]
[]
[null,null,"5.2","Location(s) of Board meetings held during the reporting period:"]
[]
[]
[]
[]
[]
[]
[]
[null,null,"5.3","No. of senior management reports submitted to the Board during the reporting period in accordance with section 181 of the Regulatory Code, 2009:"]
[]
[]
[null,"6.","RECORD KEEPING"]
[]
[null,null,6.1,"Are the licensee's records sufficiently maintained in accordance with section 38 of the Regulatory Code, 2009, in an orderly manner? "]
[]
[]
[null,null,6.2,"Are the licensee's records and underlying documentation kept in accordance with section 98 of the BVI Business Companies Act, 2004?"]
[]
[]
[null,null,6.3,"If so, where? (specify physical address, including country/territory)  If not, give reasons."]

{"sheet":"Employees","index":5,"n_rows":33,"n_cols":8,"rows_kept":33,"cut":false,"hidden":false,"merged":[[33,3,33,4],[40,3,40,4],[41,3,41,4],[42,3,42,4],[19,3,19,4],[26,3,26,4],[27,3,27,4],[28,3,28,4],[30,3,30,7],[32,3,32,4],[20,3,20,4],[21,3,21,4],[22,3,22,4],[23,3,23,4],[24,3,24,4],[25,3,25,4],[14,3,14,5],[16,3,16,7],[18,3,18,4],[3,3,3,7],[10,3,10,7],[12,3,13,5],[12,6,13,6],[39,3,39,4],[34,3,34,4],[35,3,35,4],[36,3,36,4],[37,3,37,4],[38,3,38,4]]}
[]
[null,"7.","EMPLOYEES"]
[]
[null,null,7.1,"Please state the number of staff employed to carry on the licensee's investment business regulated activities and any other activities in the table below:"]
[]
[null,null,null,"Type of Activities","Number of Full-time (permanent/temporary) Staff (In the VI)","Number of Part-time (permanent/temporary) Staff (In the VI)","Number of Full-time  (permanent/temporary) Staff (Outside the VI)","Number of Part-time (permanent/temporary) Staff (Outside the VI)"]
[null,null,null,"Regulated investment business activities:"]
[null,null,null,"Any other activities:"]
[null,null,null,"TOTAL ",{"$f":"SUM(E7:E8)","v":0},{"$f":"SUM(F7:F8)","v":0},{"$f":"SUM(G7:G8)","v":0},{"$f":"SUM(H7:H8)","v":0}]
[]
[null,null,7.2,"Please state the physical address of the licensee’s principal office or principal place of business outside the Virgin Islands and the number of staff employed at that location in the table below:"]
[]
[null,null,null,"Address of Principal Office or Principal Place of Business Outside the Virgin Islands",null,null,"No. of Staff"]
[]
[]
[]
[null,null,7.3,"Indicate the number of staff in the Virgin Islands that joined the licensee during the reporting period by position held:"]
[]
[null,null,null,"Position held ",null,"Number of Staff"]
[]
[]
[]
[]
[]
[]
[]
[]
[]
[]
[]
[null,null,7.4,"Indicate the number of staff in the Virgin Islands that left the licensee during the reporting period by position held:"]
[]
[null,null,null,"Position held ",null,"Number of Staff"]

{"sheet":"Outsourcing","index":6,"n_rows":11,"n_cols":7,"rows_kept":11,"cut":false,"hidden":false,"merged":[[19,3,19,4],[19,5,19,6],[20,3,20,4],[20,5,20,6],[16,3,16,4],[16,5,16,6],[17,3,17,4],[17,5,17,6],[18,3,18,4],[18,5,18,6],[11,3,11,4],[11,5,11,6],[5,2,5,5],[10,3,10,4],[10,5,10,6],[7,2,8,6],[12,3,12,4],[13,3,13,4],[14,3,14,4],[15,3,15,4],[12,5,12,6],[13,5,13,6],[14,5,14,6],[15,5,15,6]]}
[]
["8.","OUTSOURCING "]
[null,"(Refer to the Explanatory Notes of section 50 of the Regulatory Code, 2009 for guidance on \"Outsourcing\".)"]
[]
[null,null,null,null,null,null,"Select (Yes or No)"]
[null,"8.1","Did the licensee have any agreements in place to outsource any of its activities during the reporting period?"]
[]
[null,8.1999999999999993,"If yes, please provide below, in relation to each entity to which activities have been outsourced, the name of the entity, the activities outsourced to the entity and the entity’s jurisdiction:"]
[]
[]
[null,null,"Name of Entity","Outsourced Activities",null,"Jurisdiction of Entity"]

{"sheet":"Inv. Report","index":7,"n_rows":110,"n_cols":9,"rows_kept":110,"cut":false,"hidden":false,"merged":[[0,7,0,9],[2,2,2,7],[27,2,27,7],[6,3,6,5],[8,3,8,5],[11,3,11,5],[16,3,16,5],[18,3,18,5],[20,3,20,5],[22,3,22,5],[24,3,24,5],[6,8,6,9],[8,8,8,9],[11,8,11,9],[13,8,13,9],[18,8,18,9],[31,3,31,4],[33,3,33,4],[37,3,37,4],[42,3,42,4],[20,8,20,9],[44,3,44,4],[72,3,72,4],[74,3,74,4],[46,3,46,4],[48,3,48,4],[50,3,50,4],[53,2,53,7],[56,3,56,4],[97,2,97,8],[109,3,109,4],[107,3,107,4],[79,1,79,10],[83,2,83,7],[85,1,85,10],[89,2,89,7],[101,3,101,4],[96,3,96,4],[80,3,80,4],[86,3,86,5],[92,3,92,5],[94,3,94,5],[86,8,86,9],[92,8,92,9],[77,2,77,7],[58,3,58,4],[61,3,61,4],[66,3,66,4],[68,3,68,4],[70,3,70,4]]}
[]
["9.","INVESTMENT ACTIVITY REPORT "]
[null,9.1,"Total value of client assets for each applicable licence category/sub-category:"]
[]
[null,"Category 1 (Dealing in Investments)",null,null,null,null,null,"Category 4 (Investment Advice)"]
[]
[null,"Sub-Category A (Agent)",null,0,null,null,null,"Sub-category A  (Excluding Mutual Funds)",0]
[]
[null,"Sub-Category B (Principal)",null,0,null,null,null,"Sub-category B  (Mutual Funds)",0]
[]
[null,"Category 2 ",null,null,null,null,null,"Category 5 (Custody of Investments)"]
[null,"Arranging Deals in Investments",null,0,null,null,null,"Sub-category A (Excluding Mutual Funds)",0]
[]
[null,null,null,null,null,null,null,"Sub-category B (Mutual Funds)",0]
[null,"Category 3 (Managing Investments)"]
[]
[null,"Sub-Category A (Segregated Portfolios)",null,0,null,null,null,"Category 6 (Administration of Investments)"]
[]
[null,"Sub-Category B (Mutual Funds)",null,0,null,null,null,"Sub-category A (Excluding Mutual Funds)",0]
[]
[null,"Sub-Category C (Pension Schemes)",null,0,null,null,null,"Sub-category B (Mutual Funds)",0]
[]
[null,"Sub-Category D (Insurance Products)",null,0]
[]
[null,"Sub-Category E (Other Types of Investments)",null,0]
[]
[]
[null,9.1999999999999993,"Total number of clients for each applicable licence category/sub-category:"]
[]
[null,"Category 1 (Dealing in Investments)",null,null,null,null,null,"Category 4 (Investment Advice)"]
[]
[null,"Sub-category A (Dealing as Agent)",null,null,null,null,null,"Sub-category A  (Excluding Mutual Funds)"]
[]
[null,"Sub-category B (Dealing as Principal)",null,null,null,null,null,"Sub-category B  (Mutual Funds)"]
[]
[null,"Category 2 ",null,null,null,null,null,"Category 5 (Custody of Investments)"]
[]
[null,"Arranging Deals in Investments",null,null,null,null,null,"Sub-category A (Excluding Mutual Funds)"]
[]
[null,null,null,null,null,null,null,"Sub-category B (Mutual Funds)"]
[null,"Category 3 (Managing Investments)"]
[]
[null,"Sub-Category A (Segregated Portfolios)",null,null,null,null,null,"Category 6 (Administration of Investments)"]
[]
[null,"Sub-Category B (Mutual Funds)",null,null,null,null,null,"Sub-category A (Excluding Mutual Funds)"]
[]
[null,"Sub-Category C (Pension Schemes)",null,null,null,null,null,"Sub-category B (Mutual Funds)"]
[]
[null,"Sub-Category D (Insurance Products)"]
[]
[null,"Sub-Category E (Other Types of Investments)"]
[]
[]
[null,9.3000000000000007,"Total number of active clients for each licence category/sub-category:"]
[]
[null,"Category 1 (Dealing in Investments)",null,null,null,null,null,"Category 4 (Investment Advice)"]
[null,"Sub-category A (Dealing as Agent)",null,null,null,null,null,"Sub-category A  (Excluding Mutual Funds)"]
[]
[null,"Sub-category B (Dealing as Principal)",null,null,null,null,null,"Sub-category B  (Mutual Funds)"]
[]
[null,"Category 2 ",null,null,null,null,null,"Category 5 (Custody of Investments)"]
[null,"Arranging Deals in Investments",null,null,null,null,null,"Sub-category A (Excluding Mutual Funds)"]
[]
[null,null,null,null,null,null,null,"Sub-category B (Mutual Funds)"]
[null,"Category 3 (Managing Investments excl. Mutual Funds)"]
[]
[null,"Sub-Category A (Segregated Portfolios)",null,null,null,null,null,"Category 6 (Administration of Investments)"]
[]
[null,"Sub-Category B (Mutual Funds)",null,null,null,null,null,"Sub-category A (Excluding Mutual Funds)"]
[]
[null,"Sub-Category C (Pension Schemes)",null,null,null,null,null,"Sub-category B (Mutual Funds)"]
[]
[null,"Sub-Category D (Insurance Products)"]
[]
[null,"Sub-Category E (Other Types of Investments)"]
[]
[]
[null,9.4,"Average client trading volume under each applicable sub-category: "]
[]
[null,"Category 1 (Dealing in Investments) "]
[null,"Sub-Category A (Dealing as Agent)",null,null,null,null,null,"Sub-Category B (Dealing as Principal)"]
[]
[]
[null,9.5,"Average value per client trade under each applicable sub-category: "]
[]
[null,"Category 1 (Dealing in Investments) "]
[null,"Sub-Category A (Dealing as Agent)",null,0,null,null,null,"Sub-Category B (Dealing as Principal)",0]
[]
[]
[null,9.6,"Aggregate value of deals made during the reporting period for each applicable sub-category: "]
[]
[null,"Category 1 (Dealing in Investments) ",null,null,null,null,null,"Category 2 "]
[null,"Sub-Category A (Dealing as Agent)",null,0,null,null,null,"Arranging Deals in Investments ",0]
[]
[null,"Sub-Category B (Dealing as Principal)",null,0]
[]
[]
[null,9.6999999999999993,"Number of account transactions that utilised leverage of over 100:1 during the reporting period for each applicable sub-category: "]
[]
[null,"Category 1 (Dealing in Investments) "]
[]
[null,"Sub-Category A (Dealing as Agent)",null,null,null,null,null,"Sub-Category B (Dealing as Principal)"]
[]
[]
[null,9.8000000000000007,"Number of counterparties contracted to sell/market on behalf of a licensee for each applicable category/sub-category:"]
[]
[null,"Category 1 (Dealing in Investments) ",null,null,null,null,null,"Category 2"]
[null,"Sub-Category A (Dealing as Agent)",null,null,null,null,null,"Arranging Deals in Investments "]
[]
[null,"Sub-Category B (Dealing as Principal)"]

{"sheet":"Funds & Pensions","index":8,"n_rows":125,"n_cols":13,"rows_kept":125,"cut":false,"hidden":false,"merged":[[118,7,118,8],[116,7,116,8],[117,7,117,8],[124,7,124,8],[107,3,107,4],[108,3,108,4],[109,3,109,4],[110,3,110,4],[111,3,111,4],[112,3,112,4],[113,3,113,4],[118,3,118,4],[107,5,107,6],[108,5,108,6],[109,5,109,6],[110,5,110,6],[111,5,111,6],[112,5,112,6],[113,5,113,6],[118,5,118,6],[107,7,107,8],[108,7,108,8],[109,7,109,8],[110,7,110,8],[115,7,115,8],[106,7,106,8],[112,7,112,8],[113,7,113,8],[97,5,97,6],[97,8,97,9],[97,10,97,11],[97,12,97,14],[98,3,98,4],[98,5,98,6],[98,8,98,9],[98,10,98,11],[98,12,98,14],[111,7,111,8],[99,3,99,4],[99,5,99,6],[99,8,99,9],[99,10,99,11],[99,12,99,14],[104,7,104,8],[105,7,105,8],[114,7,114,8],[75,3,75,4],[75,5,75,6],[75,8,75,9],[75,10,75,11],[75,12,75,14],[85,3,85,4],[85,5,85,6],[85,8,85,9],[85,10,85,11],[85,12,85,14],[80,8,80,9],[80,10,80,11],[80,12,80,14],[81,3,81,4],[81,5,81,6],[81,8,81,9],[81,10,81,11],[81,12,81,14],[78,8,78,9],[78,10,78,11],[78,12,78,14],[79,3,79,4],[79,5,79,6],[79,8,79,9],[73,3,73,4],[73,5,73,6],[73,8,73,9],[73,10,73,11],[73,12,73,14],[74,3,74,4],[74,5,74,6],[74,8,74,9],[74,10,74,11],[74,12,74,14],[71,3,71,4],[71,5,71,6],[71,8,71,9],[71,10,71,11],[71,12,71,14],[72,3,72,4],[72,5,72,6],[72,8,72,9],[72,10,72,11],[72,12,72,14],[69,3,69,4],[69,5,69,6],[69,8,69,9],[69,10,69,11],[69,12,69,14],[70,3,70,4],[70,5,70,6],[70,8,70,9],[70,10,70,11],[70,12,70,14],[67,3,67,4],[67,5,67,6],[67,8,67,9],[67,10,67,11],[67,12,67,14],[68,3,68,4],[68,5,68,6],[68,8,68,9],[68,10,68,11],[68,12,68,14],[65,3,65,4],[65,5,65,6],[65,8,65,9],[65,10,65,11],[65,12,65,14],[66,3,66,4],[66,5,66,6],[66,8,66,9],[66,10,66,11],[66,12,66,14],[63,3,63,4],[63,5,63,6],[63,8,63,9],[63,10,63,11],[63,12,63,14],[64,3,64,4],[64,5,64,6],[64,8,64,9],[64,10,64,11],[64,12,64,14],[61,3,61,4],[61,5,61,6],[61,8,61,9],[61,10,61,11],[61,12,61,14],[62,3,62,4],[62,5,62,6],[62,8,62,9],[62,10,62,11],[62,12,62,14],[59,3,59,4],[59,5,59,6],[59,8,59,9],[59,10,59,11],[59,12,59,14],[60,3,60,4],[60,5,60,6],[60,8,60,9],[60,10,60,11],[60,12,60,14],[57,3,57,4],[57,5,57,6],[57,8,57,9],[57,10,57,11],[57,12,57,14],[58,3,58,4],[58,5,58,6],[58,8,58,9],[58,10,58,11],[58,12,58,14],[55,3,55,4],[55,5,55,6],[55,8,55,9],[55,10,55,11],[55,12,55,14],[56,3,56,4],[56,5,56,6],[56,8,56,9],[56,10,56,11],[56,12,56,14],[49,3,49,4],[49,5,49,6],[49,8,49,9],[49,10,49,11],[49,12,49,14],[50,3,50,4],[50,5,50,6],[50,8,50,9],[50,10,50,11],[50,12,50,14],[47,3,47,4],[47,5,47,6],[47,8,47,9],[47,10,47,11],[47,12,47,14],[48,3,48,4],[48,5,48,6],[48,8,48,9],[48,10,48,11],[48,12,48,14],[45,3,45,4],[45,5,45,6],[45,8,45,9],[45,10,45,11],[45,12,45,14],[46,3,46,4],[46,5,46,6],[46,8,46,9],[46,10,46,11],[46,12,46,14],[43,3,43,4],[43,5,43,6],[43,8,43,9],[43,10,43,11],[43,12,43,14],[44,3,44,4],[44,5,44,6],[44,8,44,9],[44,10,44,11],[44,12,44,14],[41,3,41,4],[41,5,41,6],[41,8,41,9],[41,10,41,11],[41,12,41,14],[42,3,42,4],[42,5,42,6],[42,8,42,9],[42,10,42,11],[42,12,42,14],[39,3,39,4],[39,5,39,6],[39,8,39,9],[39,10,39,11],[39,12,39,14],[40,3,40,4],[40,5,40,6],[40,8,40,9],[40,10,40,11],[40,12,40,14],[37,3,37,4],[37,5,37,6],[37,8,37,9],[37,10,37,11],[37,12,37,14],[38,3,38,4],[38,5,38,6],[38,8,38,9],[38,10,38,11],[38,12,38,14],[35,3,35,4],[35,5,35,6],[35,8,35,9],[35,10,35,11],[35,12,35,14],[36,3,36,4],[36,5,36,6],[36,8,36,9],[36,10,36,11],[36,12,36,14],[33,3,33,4],[33,5,33,6],[33,8,33,9],[33,10,33,11],[33,12,33,14],[34,3,34,4],[34,5,34,6],[34,8,34,9],[34,10,34,11],[34,12,34,14],[31,3,31,4],[31,5,31,6],[31,8,31,9],[31,10,31,11],[31,12,31,14],[32,3,32,4],[32,5,32,6],[32,8,32,9],[32,10,32,11],[32,12,32,14],[20,12,20,14],[23,12,23,14],[24,12,24,14],[11,3,11,4],[12,3,12,4],[13,3,13,4],[14,3,14,4],[15,3,15,4],[16,3,16,4],[17,3,17,4],[18,3,18,4],[19,3,19,4],[20,3,20,4],[23,3,23,4],[24,3,24,4],[11,12,11,14],[12,12,12,14],[13,12,13,14],[14,12,14,14],[15,12,15,14],[16,12,16,14],[17,12,17,14],[18,12,18,14],[19,12,19,14],[23,8,23,9],[24,8,24,9],[11,10,11,11],[12,10,12,11],[13,10,13,11],[14,10,14,11],[15,10,15,11],[16,10,16,11],[17,10,17,11],[18,10,18,11],[19,10,19,11],[20,10,20,11],[23,10,23,11],[24,10,24,11],[11,5,11,6],[12,5,12,6],[13,5,13,6],[14,5,14,6],[15,5,15,6],[23,5,23,6],[24,5,24,6],[20,5,20,6],[19,5,19,6],[18,5,18,6],[17,5,17,6],[16,5,16,6],[7,3,7,4],[7,5,7,6],[7,8,7,9],[7,10,7,11],[7,12,7,14],[97,3,97,4],[84,3,84,4],[89,3,89,4],[91,3,91,4],[93,3,93,4],[95,3,95,4],[8,3,8,4],[9,3,9,4],[10,3,10,4],[21,3,21,4],[22,3,22,4],[8,5,8,6],[9,5,9,6],[10,5,10,6],[21,5,21,6],[22,5,22,6],[25,5,25,6],[22,12,22,14],[27,10,27,11],[8,8,8,9],[9,8,9,9],[10,8,10,9],[21,8,21,9],[22,8,22,9],[8,12,8,14],[9,12,9,14],[10,12,10,14],[21,12,21,14],[8,10,8,11],[9,10,9,11],[10,10,10,11],[21,10,21,11],[22,10,22,11],[11,8,11,9],[12,8,12,9],[13,8,13,9],[14,8,14,9],[15,8,15,9],[16,8,16,9],[17,8,17,9],[18,8,18,9],[19,8,19,9],[20,8,20,9],[51,12,51,14],[52,3,52,4],[52,5,52,6],[52,8,52,9],[52,10,52,11],[52,12,52,14],[25,8,25,9],[26,8,26,9],[27,8,27,9],[51,3,51,4],[51,5,51,6],[51,8,51,9],[26,5,26,6],[27,5,27,6],[25,3,25,4],[26,3,26,4],[27,3,27,4],[28,3,28,4],[51,10,51,11],[25,12,25,14],[26,12,26,14],[27,12,27,14],[25,10,25,11],[26,10,26,11],[79,10,79,11],[79,12,79,14],[80,3,80,4],[80,5,80,6],[82,5,82,6],[82,8,82,9],[82,10,82,11],[82,12,82,14],[83,3,83,4],[83,5,83,6],[83,8,83,9],[83,10,83,11],[83,12,83,14],[82,3,82,4],[84,5,84,6],[84,8,84,9],[84,10,84,11],[84,12,84,14],[88,3,88,4],[88,5,88,6],[88,8,88,9],[88,10,88,11],[88,12,88,14],[86,3,86,4],[86,5,86,6],[86,8,86,9],[86,10,86,11],[86,12,86,14],[87,3,87,4],[87,5,87,6],[87,8,87,9],[87,10,87,11],[87,12,87,14],[89,5,89,6],[89,8,89,9],[89,10,89,11],[89,12,89,14],[90,3,90,4],[90,5,90,6],[90,8,90,9],[90,10,90,11],[90,12,90,14],[94,8,94,9],[94,10,94,11],[94,12,94,14],[91,5,91,6],[91,8,91,9],[91,10,91,11],[91,12,91,14],[92,3,92,4],[92,5,92,6],[92,8,92,9],[92,10,92,11],[92,12,92,14],[124,3,124,4],[124,5,124,6],[115,3,115,4],[115,5,115,6],[116,3,116,4],[116,5,116,6],[117,3,117,4],[117,5,117,6],[104,3,104,4],[104,5,104,6],[105,3,105,4],[105,5,105,6],[114,3,114,4],[114,5,114,6],[106,3,106,4],[106,5,106,6],[119,3,119,4],[120,3,120,4],[121,3,121,4],[122,3,122,4],[123,3,123,4],[119,5,119,6],[120,5,120,6],[121,5,121,6],[4,2,4,15],[103,2,103,15],[122,5,122,6],[123,5,123,6],[119,7,119,8],[120,7,120,8],[121,7,121,8],[122,7,122,8],[123,7,123,8],[95,5,95,6],[95,8,95,9],[95,10,95,11],[95,12,95,14],[96,3,96,4],[96,5,96,6],[96,8,96,9],[96,10,96,11],[96,12,96,14],[93,5,93,6],[93,8,93,9],[93,10,93,11],[93,12,93,14],[94,3,94,4],[94,5,94,6]]}
[]
[null,"10.","FUNDS AND PENSION SCHEME DETAILS"]
[]
[null,null,10.1,"Details of each fund, per applicable category of licence (as at the end of the reporting period):"]
[null,null,"(Where a licensee provides services to more than 20 funds under each category of licence, it may submit with this return a separate document or sheet with the information required below, labelled \"Item 10.1\")"]
[]
[null,null,null,"Category 3 (Investment Management)"]
[null,null,null,"Name of Fund",null,"Type of Fund",null,"# of Investors","Total Assets\n(USD)",null,"Net Asset Value\n(USD)",null,"Jurisdiction of Incorporation"]
[null,null,1,null,null,null,null,null,0,null,0]
[null,null,2,null,null,null,null,null,0,null,0]
[null,null,3,null,null,null,null,null,0,null,0]
[null,null,4,null,null,null,null,null,0,null,0]
[null,null,5,null,null,null,null,null,0,null,0]
[null,null,6,null,null,null,null,null,0,null,0]
[null,null,7,null,null,null,null,null,0,null,0]
[null,null,8,null,null,null,null,null,0,null,0]
[null,null,9,null,null,null,null,null,0,null,0]
[null,null,10,null,null,null,null,null,0,null,0]
[null,null,11,null,null,null,null,null,0,null,0]
[null,null,12,null,null,null,null,null,0,null,0]
[null,null,13,null,null,null,null,null,0,null,0]
[null,null,14,null,null,null,null,null,0,null,0]
[null,null,15,null,null,null,null,null,0,null,0]
[null,null,16,null,null,null,null,null,0,null,0]
[null,null,17,null,null,null,null,null,0,null,0]
[null,null,18,null,null,null,null,null,0,null,0]
[null,null,19,null,null,null,null,null,0,null,0]
[null,null,20,null,null,null,null,null,0,null,0]
[]
[]
[null,null,null,"Category 4 (Investment Advice)"]
[null,null,null,"Name of Fund",null,"Type of Fund",null,"# of Investors","Total Assets\n(USD)",null,"Net Asset Value\n(USD)",null,"Jurisdiction of Incorporation"]
[null,null,1,null,null,null,null,null,0,null,0]
[null,null,2,null,null,null,null,null,0,null,0]
[null,null,3,null,null,null,null,null,0,null,0]
[null,null,4,null,null,null,null,null,0,null,0]
[null,null,5,null,null,null,null,null,0,null,0]
[null,null,6,null,null,null,null,null,0,null,0]
[null,null,7,null,null,null,null,null,0,null,0]
[null,null,8,null,null,null,null,null,0,null,0]
[null,null,9,null,null,null,null,null,0,null,0]
[null,null,10,null,null,null,null,null,0,null,0]
[null,null,11,null,null,null,null,null,0,null,0]
[null,null,12,null,null,null,null,null,0,null,0]
[null,null,13,null,null,null,null,null,0,null,0]
[null,null,14,null,null,null,null,null,0,null,0]
[null,null,15,null,null,null,null,null,0,null,0]
[null,null,16,null,null,null,null,null,0,null,0]
[null,null,17,null,null,null,null,null,0,null,0]
[null,null,18,null,null,null,null,null,0,null,0]
[null,null,19,null,null,null,null,null,0,null,0]
[null,null,20,null,null,null,null,null,0,null,0]
[]
[]
[null,null,null,"Category 5 (Custody of Investments)"]
[null,null,null,"Name of Fund",null,"Type of Fund",null,"# of Investors","Total Assets\n(USD)",null,"Net Asset Value\n(USD)",null,"Jurisdiction of Incorporation"]
[null,null,"1",null,null,null,null,null,0,null,0]
[null,null,"2",null,null,null,null,null,0,null,0]
[null,null,"3",null,null,null,null,null,0,null,0]
[null,null,"4",null,null,null,null,null,0,null,0]
[null,null,"5",null,null,null,null,null,0,null,0]
[null,null,"6",null,null,null,null,null,0,null,0]
[null,null,"7",null,null,null,null,null,0,null,0]
[null,null,"8",null,null,null,null,null,0,null,0]
[null,null,"9",null,null,null,null,null,0,null,0]
[null,null,"10",null,null,null,null,null,0,null,0]
[null,null,"11",null,null,null,null,null,0,null,0]
[null,null,"12",null,null,null,null,null,0,null,0]
[null,null,"13",null,null,null,null,null,0,null,0]
[null,null,"14",null,null,null,null,null,0,null,0]
[null,null,"15",null,null,null,null,null,0,null,0]
[null,null,"16",null,null,null,null,null,0,null,0]
[null,null,"17",null,null,null,null,null,0,null,0]
[null,null,"18",null,null,null,null,null,0,null,0]
[null,null,"19",null,null,null,null,null,0,null,0]
[null,null,"20",null,null,null,null,null,0,null,0]
[]
[]
[null,null,null,"Category 6 (Administration of Investments)"]
[null,null,null,"Name of Fund",null,"Type of Fund",null,"# of Investors","Total Assets\n(USD)",null,"Net Asset Value\n(USD)",null,"Jurisdiction of Incorporation"]
[null,null,"1",null,null,null,null,null,0,null,0]
[null,null,"2",null,null,null,null,null,0,null,0]
[null,null,"3",null,null,null,null,null,0,null,0]
[null,null,"4",null,null,null,null,null,0,null,0]
[null,null,"5",null,null,null,null,null,0,null,0]
[null,null,"6",null,null,null,null,null,0,null,0]
[null,null,"7",null,null,null,null,null,0,null,0]
[null,null,"8",null,null,null,null,null,0,null,0]
[null,null,"9",null,null,null,null,null,0,null,0]
[null,null,"10",null,null,null,null,null,0,null,0]
[null,null,"11",null,null,null,null,null,0,null,0]
[null,null,"12",null,null,null,null,null,0,null,0]
[null,null,"13",null,null,null,null,null,0,null,0]
[null,null,"14",null,null,null,null,null,0,null,0]
[null,null,"15",null,null,null,null,null,0,null,0]
[null,null,"16",null,null,null,null,null,0,null,0]
[null,null,"17",null,null,null,null,null,0,null,0]
[null,null,"18",null,null,null,null,null,0,null,0]
[null,null,"19",null,null,null,null,null,0,null,0]
[null,null,"20",null,null,null,null,null,0,null,0]
[]
[]
[null,null,10.199999999999999,"Details of Pension schemes under management  (Applicable to licensees holding licences under Category 3, Sub-Category C (Managing Pension Schemes) Only)"]
[null,null,"(Where a licensee provides services to more than 20 pension schemes, it may submit with this return a separate document or sheet with the information required below, labelled \"Item 10.2\")"]
[null,null,null,"Name of Pension Scheme",null,"# of Investors in Pension Scheme",null,"Asset Value of Pension Scheme"]
[null,null,"1",null,null,null,null,0]
[null,null,"2",null,null,null,null,0]
[null,null,"3",null,null,null,null,0]
[null,null,"4",null,null,null,null,0]
[null,null,"5",null,null,null,null,0]
[null,null,"6",null,null,null,null,0]
[null,null,"7",null,null,null,null,0]
[null,null,"8",null,null,null,null,0]
[null,null,"9",null,null,null,null,0]
[null,null,"10",null,null,null,null,0]
[null,null,"11",null,null,null,null,0]
[null,null,"12",null,null,null,null,0]
[null,null,"13",null,null,null,null,0]
[null,null,"14",null,null,null,null,0]
[null,null,"15",null,null,null,null,0]
[null,null,"16",null,null,null,null,0]
[null,null,"17",null,null,null,null,0]
[null,null,"18",null,null,null,null,0]
[null,null,"19",null,null,null,null,0]
[null,null,"20",null,null,null,null,0]

{"sheet":"Credit Risk Exposure","index":9,"n_rows":40,"n_cols":13,"rows_kept":40,"cut":false,"hidden":false,"merged":[[4,3,5,10],[23,3,23,10],[39,3,39,13],[25,4,25,8],[26,4,26,8],[27,4,27,8],[28,4,28,8],[29,4,29,8],[25,9,25,10],[26,9,26,10],[27,9,27,10],[28,9,28,10],[29,9,29,10],[6,4,6,8],[6,9,6,10],[10,4,10,8],[7,9,7,10],[8,4,8,8],[11,4,11,8],[8,9,8,10],[9,9,9,10],[10,9,10,10],[11,9,11,10],[9,4,9,8],[7,4,7,8],[15,4,15,8],[15,9,15,10],[16,4,16,8],[16,9,16,10],[17,4,17,8],[17,9,17,10],[18,4,18,8],[18,9,18,10],[19,4,19,8],[19,9,19,10],[20,4,20,8],[20,9,20,10],[24,4,24,8],[24,9,24,10],[30,4,30,8],[30,9,30,10],[31,4,31,8],[31,9,31,10],[40,3,50,12],[32,4,32,8],[32,9,32,10],[33,4,33,8],[33,9,33,10],[34,4,34,8],[34,9,34,10]]}
[]
[null,"11.","CREDIT RISK EXPOSURE REPORT"]
[null,null,"(Category 1 and 5 Licensees Only)"]
[]
[null,null,11.1,"Overall value of exposure (includes commitments) listed by counterparty for the 5 largest exposures (as at the end of the reporting period): "]
[]
[null,null,null,null,"Name of Counterparty ",null,null,null,null,"Value of Exposures (USD)"]
[null,null,null,"1.",null,null,null,null,null,0]
[null,null,null,"2.",null,null,null,null,null,0]
[null,null,null,"3.",null,null,null,null,null,0]
[null,null,null,"4.",null,null,null,null,null,0]
[null,null,null,"5.",null,null,null,null,null,0]
[]
[]
[null,null,11.2,"Maximum potential exposure listed by counterparty for the 5 largest exposures:"]
[null,null,null,null,"Name of Counterparty",null,null,null,null,"Maximum Potential Exposure (USD)"]
[null,null,null,"1.",null,null,null,null,null,0]
[null,null,null,"2.",null,null,null,null,null,0]
[null,null,null,"3.",null,null,null,null,null,0]
[null,null,null,"4.",null,null,null,null,null,0]
[null,null,null,"5.",null,null,null,null,null,0]
[]
[]
[null,null,11.3,"Top 10 countries to which the largest exposures relate, as at the end of the reporting period:"]
[null,null,null,null,"Country",null,null,null,null,"Exposure (USD)"]
[null,null,null,"1.",null,null,null,null,null,0]
[null,null,null,"2.",null,null,null,null,null,0]
[null,null,null,"3.",null,null,null,null,null,0]
[null,null,null,"4.",null,null,null,null,null,0]
[null,null,null,"5.",null,null,null,null,null,0]
[null,null,null,"6.",null,null,null,null,null,0]
[null,null,null,"7.",null,null,null,null,null,0]
[null,null,null,"8.",null,null,null,null,null,0]
[null,null,null,"9.",null,null,null,null,null,0]
[null,null,null,"10.",null,null,null,null,null,0]
[]
[null,null,null,null,null,null,null,null,null,null,null,null,"Select (Yes or No)"]
[null,null,11.4,"Has there been any material downgrading of short term or long term obligations including counterparties during the reporting period? "]
[]
[null,null,"11.4.1","If response to 11.4 is yes, provide details of downgrading below:  "]

{"sheet":"Client Base (Geo)","index":10,"n_rows":261,"n_cols":20,"rows_kept":261,"cut":false,"hidden":false,"merged":[[3,3,3,9],[260,3,260,4],[5,5,5,6],[7,5,7,18],[5,8,5,12],[5,13,5,14],[5,15,5,16],[5,17,5,18]]}
[]
[null,"12.","CLIENT BASE"]
[]
[null,null,12.1,"Provide the number of clients originating from each jurisdiction, broken down by the licensee's category/sub-category of licence."]
[]
[null,null,null,null,null,"Category 1",null,"Category 2","Category 3",null,null,null,null,"Category 4",null,"Category 5",null,"Category 6"]
[null,null,null,null,null,"A","B",null,"A","B","C","D","E","A","B","A","B","A","B","Total"]
[null,null,null,"Jurisdiction","Country Code","No. of Clients "]
[null,null,null,"Afghanistan","AFG",0,0,0,0,0,0,0,0,0,0,0,0,0,0,{"$f":"SUM(F9:S9)","v":0}]
[null,null,null,"Åland Islands","ALA",0,0,0,0,0,0,0,0,0,0,0,0,0,0,{"$f":"SUM(F10:S10)","v":0}]
[null,null,null,"Albania","ALB",0,0,0,0,0,0,0,0,0,0,0,0,0,0,0]
[null,null,null,"Algeria","DZA",0,0,0,0,0,0,0,0,0,0,0,0,0,0,0]
[null,null,null,"American Samoa","ASM",0,0,0,0,0,0,0,0,0,0,0,0,0,0,0]
[null,null,null,"Andorra","AND",0,0,0,0,0,0,0,0,0,0,0,0,0,0,0]
[null,null,null,"Angola","AGO",0,0,0,0,0,0,0,0,0,0,0,0,0,0,0]
[null,null,null,"Anguilla","AIA",0,0,0,0,0,0,0,0,0,0,0,0,0,0,0]
[null,null,null,"Antarctica","ATA",0,0,0,0,0,0,0,0,0,0,0,0,0,0,0]
[null,null,null,"Antigua and Barbuda","ATG",0,0,0,0,0,0,0,0,0,0,0,0,0,0,0]
[null,null,null,"Argentina","ARG",0,0,0,0,0,0,0,0,0,0,0,0,0,0,0]
[null,null,null,"Armenia","ARM",0,0,0,0,0,0,0,0,0,0,0,0,0,0,0]
[null,null,null,"Aruba","ABW",0,0,0,0,0,0,0,0,0,0,0,0,0,0,0]
[null,null,null,"Australia","AUS",0,0,0,0,0,0,0,0,0,0,0,0,0,0,0]
[null,null,null,"Austria","AUT",0,0,0,0,0,0,0,0,0,0,0,0,0,0,0]
[null,null,null,"Azerbaijan","AZE",0,0,0,0,0,0,0,0,0,0,0,0,0,0,0]
[null,null,null,"Bahamas (the)","BHS",0,0,0,0,0,0,0,0,0,0,0,0,0,0,0]
[null,null,null,"Bahrain","BHR",0,0,0,0,0,0,0,0,0,0,0,0,0,0,0]
[null,null,null,"Bangladesh","BGD",0,0,0,0,0,0,0,0,0,0,0,0,0,0,0]
[null,null,null,"Barbados","BRB",0,0,0,0,0,0,0,0,0,0,0,0,0,0,0]
[null,null,null,"Belarus","BLR",0,0,0,0,0,0,0,0,0,0,0,0,0,0,0]
[null,null,null,"Belgium","BEL",0,0,0,0,0,0,0,0,0,0,0,0,0,0,0]
[null,null,null,"Belize","BLZ",0,0,0,0,0,0,0,0,0,0,0,0,0,0,0]
[null,null,null,"Benin","BEN",0,0,0,0,0,0,0,0,0,0,0,0,0,0,0]
[null,null,null,"Bermuda","BMU",0,0,0,0,0,0,0,0,0,0,0,0,0,0,0]
[null,null,null,"Bhutan","BTN",0,0,0,0,0,0,0,0,0,0,0,0,0,0,0]
[null,null,null,"Bolivia (Plurinational State of)","BOL",0,0,0,0,0,0,0,0,0,0,0,0,0,0,0]
[null,null,null,"Bonaire, Sint Eustatius and Saba","BES",0,0,0,0,0,0,0,0,0,0,0,0,0,0,0]
[null,null,null,"Bosnia and Herzegovina","BIH",0,0,0,0,0,0,0,0,0,0,0,0,0,0,0]
[null,null,null,"Botswana","BWA",0,0,0,0,0,0,0,0,0,0,0,0,0,0,0]
[null,null,null,"Bouvet Island","BVT",0,0,0,0,0,0,0,0,0,0,0,0,0,0,0]
[null,null,null,"Brazil","BRA",0,0,0,0,0,0,0,0,0,0,0,0,0,0,0]
[null,null,null,"British Indian Ocean Territory (the)","IOT",0,0,0,0,0,0,0,0,0,0,0,0,0,0,0]
[null,null,null,"Brunei Darussalam","BRN",0,0,0,0,0,0,0,0,0,0,0,0,0,0,0]
[null,null,null,"Bulgaria","BGR",0,0,0,0,0,0,0,0,0,0,0,0,0,0,0]
[null,null,null,"Burkina Faso","BFA",0,0,0,0,0,0,0,0,0,0,0,0,0,0,0]
[null,null,null,"Burundi","BDI",0,0,0,0,0,0,0,0,0,0,0,0,0,0,0]
[null,null,null,"Cabo Verde","CPV",0,0,0,0,0,0,0,0,0,0,0,0,0,0,0]
[null,null,null,"Cambodia","KHM",0,0,0,0,0,0,0,0,0,0,0,0,0,0,0]
[null,null,null,"Cameroon","CMR",0,0,0,0,0,0,0,0,0,0,0,0,0,0,0]
[null,null,null,"Canada","CAN",0,0,0,0,0,0,0,0,0,0,0,0,0,0,0]
[null,null,null,"Cayman Islands (the)","CYM",0,0,0,0,0,0,0,0,0,0,0,0,0,0,0]
[null,null,null,"Central African Republic (the)","CAF",0,0,0,0,0,0,0,0,0,0,0,0,0,0,0]
[null,null,null,"Chad","TCD",0,0,0,0,0,0,0,0,0,0,0,0,0,0,0]
[null,null,null,"Chile","CHL",0,0,0,0,0,0,0,0,0,0,0,0,0,0,0]
[null,null,null,"China","CHN",0,0,0,0,0,0,0,0,0,0,0,0,0,0,0]
[null,null,null,"Christmas Island","CXR",0,0,0,0,0,0,0,0,0,0,0,0,0,0,0]
[null,null,null,"Cocos (Keeling) Islands (the)","CCK",0,0,0,0,0,0,0,0,0,0,0,0,0,0,0]
[null,null,null,"Colombia","COL",0,0,0,0,0,0,0,0,0,0,0,0,0,0,0]
[null,null,null,"Comoros (the)","COM",0,0,0,0,0,0,0,0,0,0,0,0,0,0,0]
[null,null,null,"Congo (the Democratic Republic of the)","COD",0,0,0,0,0,0,0,0,0,0,0,0,0,0,0]
[null,null,null,"Congo (the)","COG",0,0,0,0,0,0,0,0,0,0,0,0,0,0,0]
[null,null,null,"Cook Islands (the)","COK",0,0,0,0,0,0,0,0,0,0,0,0,0,0,0]
[null,null,null,"Costa Rica","CRI",0,0,0,0,0,0,0,0,0,0,0,0,0,0,0]
[null,null,null,"Côte d'Ivoire","CIV",0,0,0,0,0,0,0,0,0,0,0,0,0,0,0]
[null,null,null,"Croatia","HRV",0,0,0,0,0,0,0,0,0,0,0,0,0,0,0]
[null,null,null,"Cuba","CUB",0,0,0,0,0,0,0,0,0,0,0,0,0,0,0]
[null,null,null,"Curaçao","CUW",0,0,0,0,0,0,0,0,0,0,0,0,0,0,0]
[null,null,null,"Cyprus","CYP",0,0,0,0,0,0,0,0,0,0,0,0,0,0,0]
[null,null,null,"Czech Republic","CZE",0,0,0,0,0,0,0,0,0,0,0,0,0,0,0]
[null,null,null,"Denmark","DNK",0,0,0,0,0,0,0,0,0,0,0,0,0,0,0]
[null,null,null,"Djibouti","DJI",0,0,0,0,0,0,0,0,0,0,0,0,0,0,0]
[null,null,null,"Dominica","DMA",0,0,0,0,0,0,0,0,0,0,0,0,0,0,0]
[null,null,null,"Dominican Republic (the)","DOM",0,0,0,0,0,0,0,0,0,0,0,0,0,0,0]
[null,null,null,"Ecuador","ECU",0,0,0,0,0,0,0,0,0,0,0,0,0,0,0]
[null,null,null,"Egypt","EGY",0,0,0,0,0,0,0,0,0,0,0,0,0,0,{"$f":"SUM(F74:S74)","v":0}]
[null,null,null,"El Salvador","SLV",0,0,0,0,0,0,0,0,0,0,0,0,0,0,0]
[null,null,null,"Equatorial Guinea","GNQ",0,0,0,0,0,0,0,0,0,0,0,0,0,0,0]
[null,null,null,"Eritrea","ERI",0,0,0,0,0,0,0,0,0,0,0,0,0,0,0]
[null,null,null,"Estonia","EST",0,0,0,0,0,0,0,0,0,0,0,0,0,0,0]
[null,null,null,"Ethiopia","ETH",0,0,0,0,0,0,0,0,0,0,0,0,0,0,0]
[null,null,null,"Falkland Islands (the) [Malvinas]","FLK",0,0,0,0,0,0,0,0,0,0,0,0,0,0,0]
[null,null,null,"Faroe Islands (the)","FRO",0,0,0,0,0,0,0,0,0,0,0,0,0,0,0]
[null,null,null,"Fiji","FJI",0,0,0,0,0,0,0,0,0,0,0,0,0,0,0]
[null,null,null,"Finland","FIN",0,0,0,0,0,0,0,0,0,0,0,0,0,0,0]
[null,null,null,"France","FRA",0,0,0,0,0,0,0,0,0,0,0,0,0,0,0]
[null,null,null,"French Guiana","GUF",0,0,0,0,0,0,0,0,0,0,0,0,0,0,0]
[null,null,null,"French Polynesia","PYF",0,0,0,0,0,0,0,0,0,0,0,0,0,0,0]
[null,null,null,"French Southern Territories (the)","ATF",0,0,0,0,0,0,0,0,0,0,0,0,0,0,0]
[null,null,null,"Gabon","GAB",0,0,0,0,0,0,0,0,0,0,0,0,0,0,0]
[null,null,null,"Gambia (the)","GMB",0,0,0,0,0,0,0,0,0,0,0,0,0,0,0]
[null,null,null,"Georgia","GEO",0,0,0,0,0,0,0,0,0,0,0,0,0,0,0]
[null,null,null,"Germany","DEU",0,0,0,0,0,0,0,0,0,0,0,0,0,0,0]
[null,null,null,"Ghana","GHA",0,0,0,0,0,0,0,0,0,0,0,0,0,0,0]
[null,null,null,"Gibraltar","GIB",0,0,0,0,0,0,0,0,0,0,0,0,0,0,0]
[null,null,null,"Greece","GRC",0,0,0,0,0,0,0,0,0,0,0,0,0,0,0]
[null,null,null,"Greenland","GRL",0,0,0,0,0,0,0,0,0,0,0,0,0,0,0]
[null,null,null,"Grenada","GRD",0,0,0,0,0,0,0,0,0,0,0,0,0,0,0]
[null,null,null,"Guadeloupe","GLP",0,0,0,0,0,0,0,0,0,0,0,0,0,0,0]
[null,null,null,"Guam","GUM",0,0,0,0,0,0,0,0,0,0,0,0,0,0,0]
[null,null,null,"Guatemala","GTM",0,0,0,0,0,0,0,0,0,0,0,0,0,0,0]
[null,null,null,"Guernsey","GGY",0,0,0,0,0,0,0,0,0,0,0,0,0,0,0]
[null,null,null,"Guinea","GIN",0,0,0,0,0,0,0,0,0,0,0,0,0,0,0]
[null,null,null,"Guinea-Bissau","GNB",0,0,0,0,0,0,0,0,0,0,0,0,0,0,0]
[null,null,null,"Guyana","GUY",0,0,0,0,0,0,0,0,0,0,0,0,0,0,0]
[null,null,null,"Haiti","HTI",0,0,0,0,0,0,0,0,0,0,0,0,0,0,0]
[null,null,null,"Heard Island and McDonald Islands","HMD",0,0,0,0,0,0,0,0,0,0,0,0,0,0,0]
[null,null,null,"Honduras","HND",0,0,0,0,0,0,0,0,0,0,0,0,0,0,0]
[null,null,null,"Hong Kong","HKG",0,0,0,0,0,0,0,0,0,0,0,0,0,0,0]
[null,null,null,"Hungary","HUN",0,0,0,0,0,0,0,0,0,0,0,0,0,0,0]
[null,null,null,"Iceland","ISL",0,0,0,0,0,0,0,0,0,0,0,0,0,0,0]
[null,null,null,"India","IND",0,0,0,0,0,0,0,0,0,0,0,0,0,0,0]
[null,null,null,"Indonesia","IDN",0,0,0,0,0,0,0,0,0,0,0,0,0,0,0]
[null,null,null,"Iran (Islamic Republic of)","IRN",0,0,0,0,0,0,0,0,0,0,0,0,0,0,0]
[null,null,null,"Iraq","IRQ",0,0,0,0,0,0,0,0,0,0,0,0,0,0,0]
[null,null,null,"Ireland","IRL",0,0,0,0,0,0,0,0,0,0,0,0,0,0,0]
[null,null,null,"Isle of Man","IMN",0,0,0,0,0,0,0,0,0,0,0,0,0,0,0]
[null,null,null,"Israel","ISR",0,0,0,0,0,0,0,0,0,0,0,0,0,0,0]
[null,null,null,"Italy","ITA",0,0,0,0,0,0,0,0,0,0,0,0,0,0,0]
[null,null,null,"Jamaica","JAM",0,0,0,0,0,0,0,0,0,0,0,0,0,0,0]
[null,null,null,"Japan","JPN",0,0,0,0,0,0,0,0,0,0,0,0,0,0,0]
[null,null,null,"Jersey","JEY",0,0,0,0,0,0,0,0,0,0,0,0,0,0,0]
[null,null,null,"Jordan","JOR",0,0,0,0,0,0,0,0,0,0,0,0,0,0,0]
[null,null,null,"Kazakhstan","KAZ",0,0,0,0,0,0,0,0,0,0,0,0,0,0,0]
[null,null,null,"Kenya","KEN",0,0,0,0,0,0,0,0,0,0,0,0,0,0,0]
[null,null,null,"Kiribati","KIR",0,0,0,0,0,0,0,0,0,0,0,0,0,0,0]
[null,null,null,"Korea (the Democratic People's Republic of)","PRK",0,0,0,0,0,0,0,0,0,0,0,0,0,0,0]
[null,null,null,"Korea (the Republic of)","KOR",0,0,0,0,0,0,0,0,0,0,0,0,0,0,0]
[null,null,null,"Kosovo (the Republic of)","XKX",0,0,0,0,0,0,0,0,0,0,0,0,0,0,0]
[null,null,null,"Kuwait","KWT",0,0,0,0,0,0,0,0,0,0,0,0,0,0,0]
[null,null,null,"Kyrgyzstan","KGZ",0,0,0,0,0,0,0,0,0,0,0,0,0,0,0]
[null,null,null,"Lao People's Democratic Republic (the)","LAO",0,0,0,0,0,0,0,0,0,0,0,0,0,0,0]
[null,null,null,"Latvia","LVA",0,0,0,0,0,0,0,0,0,0,0,0,0,0,0]
[null,null,null,"Lebanon","LBN",0,0,0,0,0,0,0,0,0,0,0,0,0,0,0]
[null,null,null,"Lesotho","LSO",0,0,0,0,0,0,0,0,0,0,0,0,0,0,0]
[null,null,null,"Liberia","LBR",0,0,0,0,0,0,0,0,0,0,0,0,0,0,0]
[null,null,null,"Libya","LBY",0,0,0,0,0,0,0,0,0,0,0,0,0,0,0]
[null,null,null,"Liechtenstein","LIE",0,0,0,0,0,0,0,0,0,0,0,0,0,0,0]
[null,null,null,"Lithuania","LTU",0,0,0,0,0,0,0,0,0,0,0,0,0,0,0]
[null,null,null,"Luxembourg","LUX",0,0,0,0,0,0,0,0,0,0,0,0,0,0,{"$f":"SUM(F138:S138)","v":0}]
[null,null,null,"Macao","MAC",0,0,0,0,0,0,0,0,0,0,0,0,0,0,0]
[null,null,null,"Macedonia (the former Yugoslav Republic of)","MKD",0,0,0,0,0,0,0,0,0,0,0,0,0,0,0]
[null,null,null,"Madagascar","MDG",0,0,0,0,0,0,0,0,0,0,0,0,0,0,0]
[null,null,null,"Malawi","MWI",0,0,0,0,0,0,0,0,0,0,0,0,0,0,0]
[null,null,null,"Malaysia","MYS",0,0,0,0,0,0,0,0,0,0,0,0,0,0,0]
[null,null,null,"Maldives","MDV",0,0,0,0,0,0,0,0,0,0,0,0,0,0,0]
[null,null,null,"Mali","MLI",0,0,0,0,0,0,0,0,0,0,0,0,0,0,0]
[null,null,null,"Malta","MLT",0,0,0,0,0,0,0,0,0,0,0,0,0,0,0]
[null,null,null,"Marshall Islands (the)","MHL",0,0,0,0,0,0,0,0,0,0,0,0,0,0,0]
[null,null,null,"Martinique","MTQ",0,0,0,0,0,0,0,0,0,0,0,0,0,0,0]
[null,null,null,"Mauritania","MRT",0,0,0,0,0,0,0,0,0,0,0,0,0,0,0]
[null,null,null,"Mauritius","MUS",0,0,0,0,0,0,0,0,0,0,0,0,0,0,0]
[null,null,null,"Mayotte","MYT",0,0,0,0,0,0,0,0,0,0,0,0,0,0,0]
[null,null,null,"Mexico","MEX",0,0,0,0,0,0,0,0,0,0,0,0,0,0,0]
[null,null,null,"Micronesia (Federated States of)","FSM",0,0,0,0,0,0,0,0,0,0,0,0,0,0,0]
[null,null,null,"Moldova (the Republic of)","MDA",0,0,0,0,0,0,0,0,0,0,0,0,0,0,0]
[null,null,null,"Monaco","MCO",0,0,0,0,0,0,0,0,0,0,0,0,0,0,0]
[null,null,null,"Mongolia","MNG",0,0,0,0,0,0,0,0,0,0,0,0,0,0,0]
[null,null,null,"Montenegro","MNE",0,0,0,0,0,0,0,0,0,0,0,0,0,0,0]
[null,null,null,"Montserrat","MSR",0,0,0,0,0,0,0,0,0,0,0,0,0,0,0]
[null,null,null,"Morocco","MAR",0,0,0,0,0,0,0,0,0,0,0,0,0,0,0]
[null,null,null,"Mozambique","MOZ",0,0,0,0,0,0,0,0,0,0,0,0,0,0,0]
[null,null,null,"Myanmar","MMR",0,0,0,0,0,0,0,0,0,0,0,0,0,0,0]
[null,null,null,"Namibia","NAM",0,0,0,0,0,0,0,0,0,0,0,0,0,0,0]
[null,null,null,"Nauru","NRU",0,0,0,0,0,0,0,0,0,0,0,0,0,0,0]
[null,null,null,"Nepal","NPL",0,0,0,0,0,0,0,0,0,0,0,0,0,0,0]
[null,null,null,"Netherlands (the)","NLD",0,0,0,0,0,0,0,0,0,0,0,0,0,0,0]
[null,null,null,"New Caledonia","NCL",0,0,0,0,0,0,0,0,0,0,0,0,0,0,0]
[null,null,null,"New Zealand","NZL",0,0,0,0,0,0,0,0,0,0,0,0,0,0,0]
[null,null,null,"Nicaragua","NIC",0,0,0,0,0,0,0,0,0,0,0,0,0,0,0]
[null,null,null,"Niger (the)","NER",0,0,0,0,0,0,0,0,0,0,0,0,0,0,0]
[null,null,null,"Nigeria","NGA",0,0,0,0,0,0,0,0,0,0,0,0,0,0,0]
[null,null,null,"Niue","NIU",0,0,0,0,0,0,0,0,0,0,0,0,0,0,0]
[null,null,null,"Norfolk Island","NFK",0,0,0,0,0,0,0,0,0,0,0,0,0,0,0]
[null,null,null,"Northern Mariana Islands (the)","MNP",0,0,0,0,0,0,0,0,0,0,0,0,0,0,0]
[null,null,null,"Norway","NOR",0,0,0,0,0,0,0,0,0,0,0,0,0,0,0]
[null,null,null,"Oman","OMN",0,0,0,0,0,0,0,0,0,0,0,0,0,0,0]
[null,null,null,"Pakistan","PAK",0,0,0,0,0,0,0,0,0,0,0,0,0,0,0]
[null,null,null,"Palau","PLW",0,0,0,0,0,0,0,0,0,0,0,0,0,0,0]
[null,null,null,"Palestine, State of","PSE",0,0,0,0,0,0,0,0,0,0,0,0,0,0,0]
[null,null,null,"Panama","PAN",0,0,0,0,0,0,0,0,0,0,0,0,0,0,0]
[null,null,null,"Papua New Guinea","PNG",0,0,0,0,0,0,0,0,0,0,0,0,0,0,0]
[null,null,null,"Paraguay","PRY",0,0,0,0,0,0,0,0,0,0,0,0,0,0,0]
[null,null,null,"Peru","PER",0,0,0,0,0,0,0,0,0,0,0,0,0,0,0]
[null,null,null,"Philippines (the)","PHL",0,0,0,0,0,0,0,0,0,0,0,0,0,0,0]
[null,null,null,"Pitcairn Islands","PCN",0,0,0,0,0,0,0,0,0,0,0,0,0,0,0]
[null,null,null,"Poland","POL",0,0,0,0,0,0,0,0,0,0,0,0,0,0,0]
[null,null,null,"Portugal","PRT",0,0,0,0,0,0,0,0,0,0,0,0,0,0,0]
[null,null,null,"Puerto Rico","PRI",0,0,0,0,0,0,0,0,0,0,0,0,0,0,0]
[null,null,null,"Qatar","QAT",0,0,0,0,0,0,0,0,0,0,0,0,0,0,0]
[null,null,null,"Réunion","REU",0,0,0,0,0,0,0,0,0,0,0,0,0,0,0]
[null,null,null,"Romania","ROU",0,0,0,0,0,0,0,0,0,0,0,0,0,0,0]
[null,null,null,"Russian Federation (the)","RUS",0,0,0,0,0,0,0,0,0,0,0,0,0,0,0]
[null,null,null,"Rwanda","RWA",0,0,0,0,0,0,0,0,0,0,0,0,0,0,0]
[null,null,null,"Saint Barthélemy","BLM",0,0,0,0,0,0,0,0,0,0,0,0,0,0,0]
[null,null,null,"Saint Helena, Ascension and Tristan da Cunha","SHN",0,0,0,0,0,0,0,0,0,0,0,0,0,0,0]
[null,null,null,"Saint Kitts and Nevis","KNA",0,0,0,0,0,0,0,0,0,0,0,0,0,0,0]
[null,null,null,"Saint Lucia","LCA",0,0,0,0,0,0,0,0,0,0,0,0,0,0,0]
[null,null,null,"Saint Martin (French part)","MAF",0,0,0,0,0,0,0,0,0,0,0,0,0,0,0]
[null,null,null,"Saint Pierre and Miquelon","SPM",0,0,0,0,0,0,0,0,0,0,0,0,0,0,0]
[null,null,null,"Saint Vincent and the Grenadines","VCT",0,0,0,0,0,0,0,0,0,0,0,0,0,0,0]
[null,null,null,"Samoa","WSM",0,0,0,0,0,0,0,0,0,0,0,0,0,0,0]
[null,null,null,"San Marino","SMR",0,0,0,0,0,0,0,0,0,0,0,0,0,0,0]
[null,null,null,"Sao Tome and Principe","STP",0,0,0,0,0,0,0,0,0,0,0,0,0,0,{"$f":"SUM(F202:S202)","v":0}]
[null,null,null,"Saudi Arabia","SAU",0,0,0,0,0,0,0,0,0,0,0,0,0,0,0]
[null,null,null,"Senegal","SEN",0,0,0,0,0,0,0,0,0,0,0,0,0,0,0]
[null,null,null,"Serbia","SRB",0,0,0,0,0,0,0,0,0,0,0,0,0,0,0]
[null,null,null,"Seychelles","SYC",0,0,0,0,0,0,0,0,0,0,0,0,0,0,0]
[null,null,null,"Sierra Leone","SLE",0,0,0,0,0,0,0,0,0,0,0,0,0,0,0]
[null,null,null,"Singapore","SGP",0,0,0,0,0,0,0,0,0,0,0,0,0,0,0]
[null,null,null,"Sint Maarten (Dutch part)","SXM",0,0,0,0,0,0,0,0,0,0,0,0,0,0,0]
[null,null,null,"Slovakia","SVK",0,0,0,0,0,0,0,0,0,0,0,0,0,0,0]
[null,null,null,"Slovenia","SVN",0,0,0,0,0,0,0,0,0,0,0,0,0,0,0]
[null,null,null,"Solomon Islands","SLB",0,0,0,0,0,0,0,0,0,0,0,0,0,0,0]
[null,null,null,"Somalia","SOM",0,0,0,0,0,0,0,0,0,0,0,0,0,0,0]
[null,null,null,"South Africa","ZAF",0,0,0,0,0,0,0,0,0,0,0,0,0,0,0]
[null,null,null,"South Georgia and the South Sandwich Islands","SGS",0,0,0,0,0,0,0,0,0,0,0,0,0,0,0]
[null,null,null,"South Sudan","SSD",0,0,0,0,0,0,0,0,0,0,0,0,0,0,0]
[null,null,null,"Spain","ESP",0,0,0,0,0,0,0,0,0,0,0,0,0,0,0]
[null,null,null,"Sri Lanka","LKA",0,0,0,0,0,0,0,0,0,0,0,0,0,0,0]
[null,null,null,"Sudan (the)","SDN",0,0,0,0,0,0,0,0,0,0,0,0,0,0,0]
[null,null,null,"Suriname","SUR",0,0,0,0,0,0,0,0,0,0,0,0,0,0,0]
[null,null,null,"Svalbard and Jan Mayen","SJM",0,0,0,0,0,0,0,0,0,0,0,0,0,0,0]
[null,null,null,"Swaziland","SWZ",0,0,0,0,0,0,0,0,0,0,0,0,0,0,0]
[null,null,null,"Sweden","SWE",0,0,0,0,0,0,0,0,0,0,0,0,0,0,0]
[null,null,null,"Switzerland","CHE",0,0,0,0,0,0,0,0,0,0,0,0,0,0,0]
[null,null,null,"Syrian Arab Republic","SYR",0,0,0,0,0,0,0,0,0,0,0,0,0,0,0]
[null,null,null,"Taiwan (Province of China)","TWN",0,0,0,0,0,0,0,0,0,0,0,0,0,0,0]
[null,null,null,"Tajikistan","TJK",0,0,0,0,0,0,0,0,0,0,0,0,0,0,0]
[null,null,null,"Tanzania, United Republic of","TZA",0,0,0,0,0,0,0,0,0,0,0,0,0,0,0]
[null,null,null,"Thailand","THA",0,0,0,0,0,0,0,0,0,0,0,0,0,0,0]
[null,null,null,"Timor-Leste","TLS",0,0,0,0,0,0,0,0,0,0,0,0,0,0,0]
[null,null,null,"Togo","TGO",0,0,0,0,0,0,0,0,0,0,0,0,0,0,0]
[null,null,null,"Tokelau","TKL",0,0,0,0,0,0,0,0,0,0,0,0,0,0,0]
[null,null,null,"Tonga","TON",0,0,0,0,0,0,0,0,0,0,0,0,0,0,0]
[null,null,null,"Trinidad and Tobago","TTO",0,0,0,0,0,0,0,0,0,0,0,0,0,0,0]
[null,null,null,"Tunisia","TUN",0,0,0,0,0,0,0,0,0,0,0,0,0,0,0]
[null,null,null,"Turkey","TUR",0,0,0,0,0,0,0,0,0,0,0,0,0,0,0]
[null,null,null,"Turkmenistan","TKM",0,0,0,0,0,0,0,0,0,0,0,0,0,0,0]
[null,null,null,"Turks and Caicos Islands (the)","TCA",0,0,0,0,0,0,0,0,0,0,0,0,0,0,0]
[null,null,null,"Tuvalu","TUV",0,0,0,0,0,0,0,0,0,0,0,0,0,0,0]
[null,null,null,"Uganda","UGA",0,0,0,0,0,0,0,0,0,0,0,0,0,0,0]
[null,null,null,"Ukraine","UKR",0,0,0,0,0,0,0,0,0,0,0,0,0,0,0]
[null,null,null,"United Arab Emirates (the)","ARE",0,0,0,0,0,0,0,0,0,0,0,0,0,0,0]
[null,null,null,"United Kingdom of Great Britain and Northern Ireland (the)","GBR",0,0,0,0,0,0,0,0,0,0,0,0,0,0,0]
[null,null,null,"United States Minor Outlying Islands (the)","UMI",0,0,0,0,0,0,0,0,0,0,0,0,0,0,0]
[null,null,null,"United States of America (the)","USA",0,0,0,0,0,0,0,0,0,0,0,0,0,0,0]
[null,null,null,"Uruguay","URY",0,0,0,0,0,0,0,0,0,0,0,0,0,0,0]
[null,null,null,"Uzbekistan","UZB",0,0,0,0,0,0,0,0,0,0,0,0,0,0,0]
[null,null,null,"Vanuatu","VUT",0,0,0,0,0,0,0,0,0,0,0,0,0,0,0]
[null,null,null,"Vatican City State (Holy See)","VAT",0,0,0,0,0,0,0,0,0,0,0,0,0,0,0]
[null,null,null,"Venezuela (Bolivarian Republic of)","VEN",0,0,0,0,0,0,0,0,0,0,0,0,0,0,0]
[null,null,null,"Vietnam","VNM",0,0,0,0,0,0,0,0,0,0,0,0,0,0,0]
[null,null,null,"Virgin Islands (British)","VGB",0,0,0,0,0,0,0,0,0,0,0,0,0,0,0]
[null,null,null,"Virgin Islands (U.S.)","VIR",0,0,0,0,0,0,0,0,0,0,0,0,0,0,0]
[null,null,null,"Wallis and Futuna","WLF",0,0,0,0,0,0,0,0,0,0,0,0,0,0,0]
[null,null,null,"Western Sahara","ESH",0,0,0,0,0,0,0,0,0,0,0,0,0,0,0]
[null,null,null,"Yemen","YEM",0,0,0,0,0,0,0,0,0,0,0,0,0,0,0]
[null,null,null,"Zambia","ZMB",0,0,0,0,0,0,0,0,0,0,0,0,0,0,0]
[null,null,null,"Zimbabwe","ZWE",0,0,0,0,0,0,0,0,0,0,0,0,0,0,0]
[null,null,null,"Other",null,0,0,0,0,0,0,0,0,0,0,0,0,0,0,0]
[null,null,null,"Unknown",null,0,0,0,0,0,0,0,0,0,0,0,0,0,0,0]
[null,null,null,"TOTAL",null,{"$f":"SUM(F9:F260)","v":0},{"$f":"SUM(G9:G260)","v":0},{"$f":"SUM(H9:H260)","v":0},0,0,0,0,0,0,0,0,0,0,0,0]

{"sheet":"Business Continuity, etc.","index":11,"n_rows":12,"n_cols":8,"rows_kept":12,"cut":false,"hidden":false,"merged":[[0,7,0,8],[8,3,9,6],[11,3,12,6]]}
[]
[null,"13.","BUSINESS CONTINUITY AND USE OF TECHNOLOGY"]
[]
[null,null,13.1,"Date when the licensee's Business Continuity Plan was reviewed and updated:"]
[]
[null,null,null,null,null,null,null,"Select (Yes or No)"]
[null,null,13.2,"Has the licensee's Business Continuity Plan been tested during the reporting period?"]
[]
[null,null,13.3,"Does the licensee have appropriate policies and procedures in place for the proper use of its IT (technological) infrastructure to guard against internal abuses and misuse?"]
[]
[]
[null,null,13.4,"Does the licensee have appropriate policies and procedures in place to guard against external threats of its IT (technological) infrastructure?"]

{"sheet":"Other Activities & Issues","index":12,"n_rows":21,"n_cols":9,"rows_kept":21,"cut":false,"hidden":false,"merged":[[18,3,18,7],[3,3,4,7],[7,3,13,8],[21,3,31,8]]}
[]
[null,"14.","OTHER BUSINESS ACTIVITIES"]
[null,null,null,null,null,null,null,null,"Select (Yes or No)"]
[null,null,14.1,"Does the licensee perform activities other than those licensed to perform under the Securities and Investment Business Act, 2010 or any relevant financial services legislation?"]
[]
[]
[null,null,"14.1.1","If the response to 14.1 is yes, describe these activities below:"]
[]
[]
[]
[]
[]
[]
[]
[]
[]
[null,"15.","OTHER ISSUES"]
[null,null,null,null,null,null,null,null,"Select (Yes or No)"]
[null,null,15.1,"Are there any industry and/or market-related issues to which you wish to draw to the Commission's attention?"]
[]
[null,null,"15.1.1","If the response to 15.1 is yes, provide details below:"]

{"sheet":"Declaration","index":13,"n_rows":19,"n_cols":12,"rows_kept":19,"cut":false,"hidden":false,"merged":[[3,2,3,13],[4,3,4,13],[6,3,6,6],[6,8,6,12],[14,3,14,6],[14,8,14,12],[12,4,12,12]]}
[]
[null,"16. DECLARATION"]
[]
[null,null,"DECLARATION"]
[null,null,null,"I am authorised to complete this declaration on behalf of the licensee. I certify that this return represents an accurate and fair view of the licensee's position at the above reporting period. I undertake that if there are other material facts affecting the licensee's affairs which, in my judgement should be disclosed, I will advise the Financial Services Commission.   I understand that the Commission may take enforcement action against the licensee under the Financial Services Commission Act where false, inaccurate or misleading information is submitted within this return."]
[]
[]
[null,null,null,"Name (Last Name, First Name)",null,null,null,null,"Name of Organisation (if not within Licensee)"]
[]
[null,null,null,"Relationship to Licensee: "]
[null,null,null,"       Registered Agent ",null,"    Authorised Representative",null,null,"Director/Senior Officer",null,null,"Employee"]
[]
[null,null,null,"       Other (please specify): "]
[]
[]
[null,null,null,"Email Address",null,null,null,null,"Telephone Number"]
[]
[]
[null,null,null,"Date"]

{"sheet":"Answer Key","index":14,"n_rows":17,"n_cols":2,"rows_kept":17,"cut":false,"hidden":true,"merged":[[1,0,2,0],[4,0,9,0]]}
[]
["Answer Key for Questions","Yes"]
[null,"No"]
[]
[]
[null,"Private"]
[null,"Professional"]
[null,"Public"]
[null,"Private Investment"]
[null,"Other"]
[]
[]
[null,0]
[null,"1 to 4 "]
[null,"5 to 8 "]
[null,"9 to 12 "]
[null,"more than 12"]